fUST/lending_fUST_20250219
["ID","MTS","AMOUNT","RATE_DAILY","PERIOD"]
[353559204,1739914237853,-500.0,0.00013945,2]
[353559205,1739914237862,-643.08,0.00013945,2]
[353559206,1739914237873,-500.0,0.00013945,2]
[353559207,1739914237882,-500.0,0.00013945,2]
[353559208,1739914237894,-500.0,0.00013945,2]
[353559209,1739914237904,-500.0,0.00013945,2]
[353559210,1739914237920,-500.0,0.00013945,2]
[353559211,1739914237930,-500.0,0.00013945,2]
[353559212,1739914237940,-500.0,0.00013945,2]
[353559213,1739914237950,-520.48,0.00013945,2]
[353559214,1739914237959,-500.0,0.00013945,2]
[353559215,1739914237969,-500.0,0.00013945,2]
[353559216,1739914237979,-500.0,0.00013945,2]
[353559217,1739914237989,-500.0,0.00013945,2]
[353559218,1739914237998,-816.32,0.00013945,2]
[353559219,1739914238009,-500.0,0.00013945,2]
[353559220,1739914238020,-500.0,0.00013945,2]
[353559221,1739914238031,-166.90202974,0.00013945,2]
[353559222,1739914238041,-452.85473752,0.00013945,2]
[353559223,1739914238051,-519.7570156,0.00013945,2]
[353559225,1739914238062,-164.96469723,0.00013945,2]
[353559226,1739914238072,-500.0,0.00013945,2]
[353559228,1739914238082,-500.0,0.00013945,2]
[353559230,1739914238092,-500.0,0.00013945,2]
[353559232,1739914238102,-521.98,0.00013945,2]
[353559233,1739914238112,-500.0,0.00013945,2]
[353559234,1739914238122,-500.0,0.00013945,2]
[353559236,1739914238132,-500.0,0.00013945,2]
[353559237,1739914238142,-500.0,0.00013945,2]
[353559238,1739914238151,-500.0,0.00013945,2]
[353559239,1739914238162,-500.0,0.00013945,2]
[353559240,1739914238172,-500.0,0.00013945,2]
[353559241,1739914238182,-500.0,0.00013945,2]
[353559242,1739914238191,-500.0,0.00013945,2]
[353559243,1739914238201,-772.18,0.00013945,2]
[353559244,1739914238210,-500.0,0.00013945,2]
[353559245,1739914238220,-500.0,0.00013945,2]
[353559246,1739914238230,-500.0,0.00013945,2]
[353559248,1739914238240,-500.0,0.00013945,2]
[353559250,1739914238249,-500.0,0.00013945,2]
[353559252,1739914238259,-500.0,0.00013945,2]
[353559253,1739914238268,-500.0,0.00013945,2]
[353559254,1739914238278,-506.94,0.00013945,2]
[353559255,1739914238287,-500.0,0.00013945,2]
[353559257,1739914238297,-500.0,0.00013945,2]
[353559259,1739914238307,-500.0,0.00013945,2]
[353559260,1739914238316,-530.31,0.00013945,2]
[353559261,1739914238325,-500.0,0.00013945,2]
[353559262,1739914238334,-681.41,0.00013945,2]
[353559263,1739914238344,-500.0,0.00013945,2]
[353559264,1739914238354,-975.67,0.00013945,2]
[353559265,1739914238363,-500.0,0.00013945,2]
[353559266,1739914238373,-546.38,0.00013945,2]
[353559267,1739914238382,-500.0,0.00013945,2]
[353559268,1739914238392,-500.0,0.00013945,2]
[353559270,1739914238401,-2324.44,0.00013945,2]
[353559272,1739914238411,-500.0,0.00013945,2]
[353559274,1739914238421,-733.7,0.00013945,2]
[353559276,1739914238430,-500.0,0.00013945,2]
[353559278,1739914238440,-500.0,0.00013945,2]
[353559280,1739914238449,-500.0,0.00013945,2]
[353559282,1739914238458,-500.0,0.00013945,2]
[353559284,1739914238467,-500.0,0.00013945,2]
[353559286,1739914238477,-500.0,0.00013945,2]
[353559288,1739914238486,-1280.38,0.00013945,2]
[353559290,1739914238495,-703.38,0.00013945,2]
[353559292,1739914238504,-614.31,0.00013945,2]
[353559293,1739914238513,-500.0,0.00013945,2]
[353559296,1739914238523,-500.0,0.00013945,2]
[353559297,1739914238532,-737.48,0.00013945,2]
[353559299,1739914238541,-612.26164495,0.00013945,2]
[353559301,1739914238550,-500.0,0.00013945,2]
[353559303,1739914238560,-622.56,0.00013945,2]
[353559305,1739914238570,-26318.55,0.00013945,2]
[353559307,1739914238579,-500.0,0.00013945,2]
[353559309,1739914238588,-1068.88,0.00013945,2]
[353559311,1739914238597,-700.06,0.00013945,2]
[353559313,1739914238606,-723.02,0.00013945,2]
[353559315,1739914238616,-500.0,0.00013945,2]
[353559317,1739914238625,-500.0,0.00013945,2]
[353559319,1739914238634,-1820.28,0.00013945,2]
[353559321,1739914238644,-500.0,0.00013945,2]
[353559323,1739914238653,-2563.76,0.00013945,2]
[353559325,1739914238663,-3155.81,0.00013945,2]
[353559327,1739914238672,-500.0,0.00013945,2]
[353559329,1739914238681,-500.0,0.00013945,2]
[353559331,1739914238690,-500.0,0.00013945,2]
[353559333,1739914238700,-500.0,0.00013945,2]
[353559335,1739914238709,-1599.57,0.00013945,2]
[353559337,1739914238718,-1715.22,0.00013945,2]
[353559339,1739914238727,-500.0,0.00013945,2]
[353559341,1739914238736,-1738.43,0.00013945,2]
[353559343,1739914238745,-8846.61,0.00013945,2]
[353559345,1739914238754,-500.0,0.00013945,2]
[353559347,1739914238763,-500.0,0.00013945,2]
[353559349,1739914238772,-500.0,0.00013945,2]
[353559351,1739914238781,-807.83,0.00013945,2]
[353559353,1739914238790,-753.92,0.00013945,2]
[353559355,1739914238799,-500.0,0.00013945,2]
[353559357,1739914238808,-500.0,0.00013945,2]
[353559359,1739914238817,-500.0,0.00013945,2]
[353559361,1739914238826,-500.0,0.00013945,2]
[353559363,1739914238835,-599.33,0.00013945,2]
[353559365,1739914238844,-500.0,0.00013945,2]
[353559367,1739914238854,-500.0,0.00013945,2]
[353559369,1739914238863,-781.09,0.00013945,2]
[353559371,1739914238873,-500.0,0.00013945,2]
[353559373,1739914238882,-837.18,0.00013945,2]
[353559375,1739914238892,-1914.52281658,0.0001398,2]
[353559377,1739914238902,-500.0,0.00014027,2]
[353559379,1739914238911,-500.0,0.00014027,2]
[353559381,1739914238920,-500.0,0.00014027,2]
[353559383,1739914238929,-500.0,0.00014027,2]
[353559385,1739914238938,-500.0,0.00014027,2]
[353559387,1739914238947,-500.0,0.00014027,2]
[353559389,1739914238956,-500.0,0.00014027,2]
[353559391,1739914238965,-500.0,0.00014027,2]
[353559393,1739914238974,-500.0,0.00014027,2]
[353559395,1739914238983,-500.0,0.00014027,2]
[353559397,1739914238992,-500.0,0.00014027,2]
[353559399,1739914239001,-500.0,0.00014027,2]
[353559401,1739914239011,-839.24,0.00014027,2]
[353559403,1739914239024,-500.0,0.00014027,2]
[353559405,1739914239033,-500.0,0.00014027,2]
[353559407,1739914239042,-500.0,0.00014027,2]
[353559409,1739914239051,-421.52766294,0.00014027,2]
[353559411,1739914239061,-500.0,0.00014027,2]
[353559413,1739914239070,-1064.25,0.00014027,2]
[353559415,1739914239080,-500.0,0.00014027,2]
[353559417,1739914239089,-500.0,0.00014027,2]
[353559419,1739914239099,-500.0,0.00014027,2]
[353559421,1739914239109,-500.0,0.00014027,2]
[353559434,1739914239216,-500.0,0.00014027,2]
[353559436,1739914239226,-643.08,0.00014027,2]
[353559438,1739914239236,-500.0,0.00014027,2]
[353559440,1739914239245,-500.0,0.00014027,2]
[353559442,1739914239255,-500.0,0.00014027,2]
[353559444,1739914239264,-500.0,0.00014027,2]
[353559446,1739914239272,-447.52513472,0.00014027,2]
[353559448,1739914239281,-500.0,0.00014027,2]
[353559450,1739914239291,-500.0,0.00014027,2]
[353559452,1739914239300,-500.0,0.00014027,2]
[353559454,1739914239309,-500.0,0.00014027,2]
[353559455,1739914239318,-500.0,0.00014027,2]
[353559457,1739914239327,-500.0,0.00014027,2]
[353559459,1739914239336,-816.32,0.00014027,2]
[353559461,1739914239346,-500.0,0.00014027,2]
[353559463,1739914239355,-500.0,0.00014027,2]
[353559465,1739914239364,-500.0,0.00014027,2]
[353559467,1739914239373,-500.0,0.00014027,2]
[353559469,1739914239382,-521.98,0.00014027,2]
[353559471,1739914239391,-500.0,0.00014027,2]
[353559473,1739914239401,-500.0,0.00014027,2]
[353559475,1739914239410,-500.0,0.00014027,2]
[353559477,1739914239419,-500.0,0.00014027,2]
[353559479,1739914239429,-500.0,0.00014027,2]
[353559481,1739914239438,-500.0,0.00014027,2]
[353559483,1739914239447,-500.0,0.00014027,2]
[353559485,1739914239456,-500.0,0.00014027,2]
[353559487,1739914239466,-500.0,0.00014027,2]
[353559489,1739914239476,-772.18,0.00014027,2]
[353559491,1739914239485,-500.0,0.00014027,2]
[353559493,1739914239494,-500.0,0.00014027,2]
[353559495,1739914239504,-500.0,0.00014027,2]
[353559497,1739914239513,-500.0,0.00014027,2]
[353559499,1739914239522,-500.0,0.00014027,2]
[353559501,1739914239531,-462.88588621,0.00014027,2]
[353559503,1739914239541,-506.94,0.00014027,2]
[353559505,1739914239550,-500.0,0.00014027,2]
[353559507,1739914239559,-500.0,0.00014027,2]
[353559509,1739914239568,-500.0,0.00014027,2]
[353559511,1739914239577,-500.0,0.00014027,2]
[353559513,1739914239586,-681.41,0.00014027,2]
[353559515,1739914239595,-975.67,0.00014027,2]
[353559517,1739914239605,-500.0,0.00014027,2]
[353559519,1739914239614,-546.38,0.00014027,2]
[353559521,1739914239625,-500.0,0.00014027,2]
[353559523,1739914239634,-500.0,0.00014027,2]
[353559525,1739914239644,-2324.44,0.00014027,2]
[353559526,1739914239654,-500.0,0.00014027,2]
[353559527,1739914239663,-733.7,0.00014027,2]
[353559528,1739914239672,-500.0,0.00014027,2]
[353559529,1739914239681,-500.0,0.00014027,2]
[353559530,1739914239691,-500.0,0.00014027,2]
[353559531,1739914239700,-548.3286958,0.00014027,2]
[353559532,1739914239709,-500.0,0.00014027,2]
[353559533,1739914239718,-1280.38,0.00014027,2]
[353559534,1739914239727,-703.38,0.00014027,2]
[353559535,1739914239737,-614.31,0.00014027,2]
[353559536,1739914239746,-500.0,0.00014027,2]
[353559537,1739914239755,-500.0,0.00014027,2]
[353559538,1739914239765,-737.48,0.00014027,2]
[353559539,1739914239774,-500.0,0.00014027,2]
[353559540,1739914239784,-622.56,0.00014027,2]
[353559541,1739914239794,-26318.55,0.00014027,2]
[353559542,1739914239803,-500.0,0.00014027,2]
[353559543,1739914239813,-1068.88,0.00014027,2]
[353559544,1739914239822,-700.06,0.00014027,2]
[353559545,1739914239831,-723.02,0.00014027,2]
[353559546,1739914239840,-500.0,0.00014027,2]
[353559547,1739914239850,-500.0,0.00014027,2]
[353559548,1739914239859,-1820.28,0.00014027,2]
[353559549,1739914239868,-500.0,0.00014027,2]
[353559550,1739914239878,-2563.76,0.00014027,2]
[353559552,1739914239887,-3155.81,0.00014027,2]
[353559553,1739914239896,-500.0,0.00014027,2]
[353559555,1739914239906,-500.0,0.00014027,2]
[353559556,1739914239915,-500.0,0.00014027,2]
[353559558,1739914239925,-1599.57,0.00014027,2]
[353559560,1739914239934,-1715.22,0.00014027,2]
[353559562,1739914239944,-500.0,0.00014027,2]
[353559563,1739914239953,-1738.43,0.00014027,2]
[353559564,1739914239962,-8846.61,0.00014027,2]
[353559566,1739914239971,-500.0,0.00014027,2]
[353559567,1739914239980,-500.0,0.00014027,2]
[353559569,1739914239989,-500.0,0.00014027,2]
[353559571,1739914239999,-807.83,0.00014027,2]
[353559573,1739914240008,-753.92,0.00014027,2]
[353559575,1739914240019,-500.0,0.00014027,2]
[353559577,1739914240029,-500.0,0.00014027,2]
[353559579,1739914240038,-500.0,0.00014027,2]
[353559581,1739914240048,-500.0,0.00014027,2]
[353559583,1739914240058,-599.33,0.00014027,2]
[353559585,1739914240067,-500.0,0.00014027,2]
[353559587,1739914240076,-500.0,0.00014027,2]
[353559589,1739914240085,-781.09,0.00014027,2]
[353559591,1739914240096,-500.0,0.00014027,2]
[353559593,1739914240105,-837.18,0.00014027,2]
[353559595,1739914240115,-7438.69753278,0.00014082,2]
[353559597,1739914240124,-500.0,0.00014109,2]
[353559599,1739914240133,-500.0,0.00014109,2]
[353559601,1739914240143,-500.0,0.00014109,2]
[353559603,1739914240152,-500.0,0.00014109,2]
[353559605,1739914240162,-500.0,0.00014109,2]
[353559607,1739914240171,-500.0,0.00014109,2]
[353559609,1739914240180,-500.0,0.00014109,2]
[353559611,1739914240189,-500.0,0.00014109,2]
[353559613,1739914240199,-500.0,0.00014109,2]
[353559615,1739914240208,-500.0,0.00014109,2]
[353559617,1739914240217,-839.24,0.00014109,2]
[353559619,1739914240227,-500.0,0.00014109,2]
[353559621,1739914240236,-500.0,0.00014109,2]
[353559623,1739914240246,-500.0,0.00014109,2]
[353559625,1739914240255,-1064.25,0.00014109,2]
[353559627,1739914240265,-256.45737761,0.00014109,2]
[353559629,1739914240274,-500.0,0.00014109,2]
[353559632,1739914240284,-500.0,0.00014109,2]
[353559634,1739914240293,-643.08,0.00014109,2]
[353559636,1739914240303,-500.0,0.00014109,2]
[353559638,1739914240312,-500.0,0.00014109,2]
[353559640,1739914240322,-500.0,0.00014109,2]
[353559642,1739914240331,-500.0,0.00014109,2]
[353559644,1739914240340,-500.0,0.00014109,2]
[353559646,1739914240349,-500.0,0.00014109,2]
[353559648,1739914240358,-500.0,0.00014109,2]
[353559650,1739914240367,-816.32,0.00014109,2]
[353559652,1739914240376,-500.0,0.00014109,2]
[353559654,1739914240386,-500.0,0.00014109,2]
[353559656,1739914240396,-517.63225098,0.00014109,2]
[353559657,1739914240405,-521.98,0.00014109,2]
[353559658,1739914240414,-500.0,0.00014109,2]
[353559659,1739914240423,-500.0,0.00014109,2]
[353559660,1739914240432,-500.0,0.00014109,2]
[353559661,1739914240441,-500.0,0.00014109,2]
[353559662,1739914240450,-500.0,0.00014109,2]
[353559663,1739914240459,-500.0,0.00014109,2]
[353559664,1739914240468,-500.0,0.00014109,2]
[353559665,1739914240477,-500.0,0.00014109,2]
[353559666,1739914240486,-500.0,0.00014109,2]
[353559667,1739914240495,-772.18,0.00014109,2]
[353559668,1739914240504,-500.0,0.00014109,2]
[353559669,1739914240514,-500.0,0.00014109,2]
[353559670,1739914240523,-500.0,0.00014109,2]
[353559671,1739914240532,-500.0,0.00014109,2]
[353559672,1739914240541,-500.0,0.00014109,2]
[353559674,1739914240550,-506.94,0.00014109,2]
[353559676,1739914240559,-500.0,0.00014109,2]
[353559678,1739914240568,-500.0,0.00014109,2]
[353559680,1739914240578,-500.0,0.00014109,2]
[353559682,1739914240587,-500.0,0.00014109,2]
[353559684,1739914240596,-681.41,0.00014109,2]
[353559686,1739914240605,-975.67,0.00014109,2]
[353559688,1739914240615,-500.0,0.00014109,2]
[353559690,1739914240624,-546.38,0.00014109,2]
[353559692,1739914240632,-500.0,0.00014109,2]
[353559694,1739914240642,-500.0,0.00014109,2]
[353559696,1739914240651,-2324.44,0.00014109,2]
[353559698,1739914240660,-500.0,0.00014109,2]
[353559700,1739914240669,-733.7,0.00014109,2]
[353559702,1739914240679,-500.0,0.00014109,2]
[353559704,1739914240688,-500.0,0.00014109,2]
[353559706,1739914240697,-500.0,0.00014109,2]
[353559708,1739914240706,-500.0,0.00014109,2]
[353559710,1739914240716,-1280.38,0.00014109,2]
[353559712,1739914240725,-703.38,0.00014109,2]
[353559714,1739914240734,-614.31,0.00014109,2]
[353559716,1739914240743,-500.0,0.00014109,2]
[353559718,1739914240752,-500.0,0.00014109,2]
[353559720,1739914240761,-737.48,0.00014109,2]
[353559722,1739914240771,-500.0,0.00014109,2]
[353559724,1739914240781,-622.56,0.00014109,2]
[353559726,1739914240791,-26318.55,0.00014109,2]
[353559728,1739914240800,-269.52802405,0.00014109,2]
[353559730,1739914240809,-1068.88,0.00014109,2]
[353559732,1739914240818,-700.06,0.00014109,2]
[353559734,1739914240828,-723.02,0.00014109,2]
[353559736,1739914240837,-500.0,0.00014109,2]
[353559738,1739914240847,-500.0,0.00014109,2]
[353559740,1739914240856,-1820.28,0.00014109,2]
[353559742,1739914240865,-500.0,0.00014109,2]
[353559744,1739914240874,-2563.76,0.00014109,2]
[353559746,1739914240884,-3155.81,0.00014109,2]
[353559748,1739914240895,-500.0,0.00014109,2]
[353559750,1739914240904,-500.0,0.00014109,2]
[353559752,1739914240913,-1599.57,0.00014109,2]
[353559754,1739914240923,-1715.22,0.00014109,2]
[353559756,1739914240933,-500.0,0.00014109,2]
[353559758,1739914240942,-1738.43,0.00014109,2]
[353559760,1739914240951,-8846.61,0.00014109,2]
[353559762,1739914240960,-500.0,0.00014109,2]
[353559764,1739914240969,-500.0,0.00014109,2]
[353559766,1739914240979,-500.0,0.00014109,2]
[353559768,1739914240989,-807.83,0.00014109,2]
[353559770,1739914240998,-753.92,0.00014109,2]
[353559772,1739914241007,-500.0,0.00014109,2]
[353559774,1739914241020,-500.0,0.00014109,2]
[353559776,1739914241030,-500.0,0.00014109,2]
[353559779,1739914241039,-500.0,0.00014109,2]
[353559780,1739914241048,-599.33,0.00014109,2]
[353559782,1739914241058,-500.0,0.00014109,2]
[353559784,1739914241067,-500.0,0.00014109,2]
[353559785,1739914241077,-781.09,0.00014109,2]
[353559786,1739914241086,-500.0,0.00014109,2]
[353559788,1739914241097,-837.18,0.00014109,2]
[353559789,1739914241106,-349.57677234,0.00014173,2]
[353559790,1739914241115,-500.0,0.00014173,2]
[353559791,1739914241125,-500.0,0.00014173,2]
[353559792,1739914241134,-246.99571098,0.00014173,2]
[353559793,1739914241143,-346.885,0.00014186,2]
[353559794,1739914241152,-500.0,0.00014191,2]
[353559795,1739914241161,-500.0,0.00014191,2]
[353559796,1739914241171,-500.0,0.00014191,2]
[353559797,1739914241180,-500.0,0.00014191,2]
[353559798,1739914241189,-500.0,0.00014191,2]
[353559799,1739914241198,-500.0,0.00014191,2]
[353559800,1739914241208,-500.0,0.00014191,2]
[353559801,1739914241217,-559.9939918,0.00014191,2]
[353559802,1739914241227,-500.0,0.00014191,2]
[353559803,1739914241236,-839.24,0.00014191,2]
[353559804,1739914241245,-500.0,0.00014191,2]
[353559805,1739914241254,-500.0,0.00014191,2]
[353559806,1739914241264,-500.0,0.00014191,2]
[353559807,1739914241273,-1064.25,0.00014191,2]
[353559808,1739914241283,-500.0,0.00014191,2]
[353559809,1739914241292,-500.0,0.00014191,2]
[353559810,1739914241301,-643.08,0.00014191,2]
[353559811,1739914241311,-500.0,0.00014191,2]
[353559812,1739914241320,-500.0,0.00014191,2]
[353559813,1739914241329,-500.0,0.00014191,2]
[353559814,1739914241339,-500.0,0.00014191,2]
[353559815,1739914241348,-500.0,0.00014191,2]
[353559816,1739914241357,-500.0,0.00014191,2]
[353559817,1739914241367,-500.0,0.00014191,2]
[353559818,1739914241376,-816.32,0.00014191,2]
[353559819,1739914241385,-500.0,0.00014191,2]
[353559820,1739914241396,-500.0,0.00014191,2]
[353559821,1739914241406,-521.98,0.00014191,2]
[353559822,1739914241415,-500.0,0.00014191,2]
[353559823,1739914241423,-500.0,0.00014191,2]
[353559824,1739914241432,-234.67048638,0.00014191,2]
[353559825,1739914241442,-500.0,0.00014191,2]
[353559826,1739914241451,-500.0,0.00014191,2]
[353559827,1739914241460,-322.22816614,0.00014191,2]
[353559828,1739914241469,-500.0,0.00014191,2]
[353559829,1739914241479,-772.18,0.00014191,2]
[353559830,1739914241488,-500.0,0.00014191,2]
[353559831,1739914241497,-500.0,0.00014191,2]
[353559832,1739914241507,-500.0,0.00014191,2]
[353559833,1739914241516,-500.0,0.00014191,2]
[353559834,1739914241526,-506.94,0.00014191,2]
[353559835,1739914241627,-500.0,0.00014191,2]
[353559836,1739914241637,-500.0,0.00014191,2]
[353559837,1739914241647,-500.0,0.00014191,2]
[353559838,1739914241657,-681.41,0.00014191,2]
[353559839,1739914241666,-975.67,0.00014191,2]
[353559840,1739914241676,-500.0,0.00014191,2]
[353559841,1739914241685,-546.38,0.00014191,2]
[353559842,1739914241695,-500.0,0.00014191,2]
[353559843,1739914241704,-500.0,0.00014191,2]
[353559844,1739914241714,-2324.44,0.00014191,2]
[353559845,1739914241723,-500.0,0.00014191,2]
[353559846,1739914241732,-733.7,0.00014191,2]
[353559847,1739914241742,-500.0,0.00014191,2]
[353559848,1739914241751,-500.0,0.00014191,2]
[353559849,1739914241760,-500.0,0.00014191,2]
[353559850,1739914241769,-500.0,0.00014191,2]
[353559851,1739914241779,-1280.38,0.00014191,2]
[353559852,1739914241789,-703.38,0.00014191,2]
[353559853,1739914241799,-614.31,0.00014191,2]
[353559854,1739914241808,-500.0,0.00014191,2]
[353559855,1739914241818,-384.75014643,0.00014191,2]
[353559856,1739914241827,-737.48,0.00014191,2]
[353559857,1739914241837,-500.0,0.00014191,2]
[353559858,1739914241847,-622.56,0.00014191,2]
[353559859,1739914241857,-26318.55,0.00014191,2]
[353559860,1739914241867,-1068.88,0.00014191,2]
[353559861,1739914241876,-700.06,0.00014191,2]
[353559862,1739914241887,-723.02,0.00014191,2]
[353559863,1739914241897,-500.0,0.00014191,2]
[353559864,1739914241907,-500.0,0.00014191,2]
[353559865,1739914241917,-1820.28,0.00014191,2]
[353559866,1739914241927,-500.0,0.00014191,2]
[353559867,1739914241936,-2563.76,0.00014191,2]
[353559868,1739914241945,-3155.81,0.00014191,2]
[353559869,1739914241954,-500.0,0.00014191,2]
[353559870,1739914241964,-500.0,0.00014191,2]
[353559871,1739914241973,-1599.57,0.00014191,2]
[353559872,1739914241983,-1715.22,0.00014191,2]
[353559873,1739914241993,-500.0,0.00014191,2]
[353559874,1739914242003,-1738.43,0.00014191,2]
[353559875,1739914242012,-8846.61,0.00014191,2]
[353559876,1739914242025,-500.0,0.00014191,2]
[353559877,1739914242035,-500.0,0.00014191,2]
[353559878,1739914242044,-500.0,0.00014191,2]
[353559879,1739914242054,-807.83,0.00014191,2]
[353559880,1739914242065,-753.92,0.00014191,2]
[353559881,1739914242075,-500.0,0.00014191,2]
[353559882,1739914242084,-500.0,0.00014191,2]
[353559883,1739914242096,-500.0,0.00014191,2]
[353559884,1739914242106,-599.33,0.00014191,2]
[353559885,1739914242115,-500.0,0.00014191,2]
[353559886,1739914242125,-781.09,0.00014191,2]
[353559887,1739914242135,-500.0,0.00014191,2]
[353559888,1739914242146,-837.18,0.00014191,2]
[353559889,1739914242156,-777.10380595,0.00014213,2]
[353559890,1739914242166,-500.0,0.00014273,2]
[353559891,1739914242176,-500.0,0.00014273,2]
[353559892,1739914242187,-500.0,0.00014273,2]
[353559893,1739914242197,-500.0,0.00014273,2]
[353559894,1739914242207,-500.0,0.00014273,2]
[353559895,1739914242216,-500.0,0.00014273,2]
[353559896,1739914242226,-500.0,0.00014273,2]
[353559897,1739914242236,-500.0,0.00014273,2]
[353559898,1739914242245,-839.24,0.00014273,2]
[353559899,1739914242255,-500.0,0.00014273,2]
[353559900,1739914242264,-500.0,0.00014273,2]
[353559901,1739914242273,-180.41374256,0.00014273,2]
[353559902,1739914242283,-1064.25,0.00014273,2]
[353559903,1739914242292,-500.0,0.00014273,2]
[353559904,1739914242302,-500.0,0.00014273,2]
[353559905,1739914242311,-643.08,0.00014273,2]
[353559906,1739914242321,-500.0,0.00014273,2]
[353559907,1739914242330,-500.0,0.00014273,2]
[353559908,1739914242341,-500.0,0.00014273,2]
[353559909,1739914242350,-500.0,0.00014273,2]
[353559910,1739914242359,-449.78377754,0.00014273,2]
[353559911,1739914242368,-500.0,0.00014273,2]
[353559912,1739914242377,-816.32,0.00014273,2]
[353559913,1739914242387,-500.0,0.00014273,2]
[353559914,1739914242398,-500.0,0.00014273,2]
[353559915,1739914242407,-521.98,0.00014273,2]
[353559916,1739914242417,-365.73664343,0.00014273,2]
[353559917,1739914242427,-500.0,0.00014273,2]
[353559918,1739914242437,-500.0,0.00014273,2]
[353559919,1739914242447,-500.0,0.00014273,2]
[353559920,1739914242456,-500.0,0.00014273,2]
[353559921,1739914242466,-772.18,0.00014273,2]
[353559922,1739914242476,-500.0,0.00014273,2]
[353559923,1739914242485,-500.0,0.00014273,2]
[353559924,1739914242495,-500.0,0.00014273,2]
[353559925,1739914242505,-500.0,0.00014273,2]
[353559926,1739914242515,-506.94,0.00014273,2]
[353559927,1739914242525,-204.09565581,0.00014273,2]
[353559928,1739914242535,-500.0,0.00014273,2]
[353559929,1739914242545,-500.0,0.00014273,2]
[353559930,1739914242555,-681.41,0.00014273,2]
[353559931,1739914242564,-975.67,0.00014273,2]
[353559932,1739914242574,-500.0,0.00014273,2]
[353559933,1739914242583,-546.38,0.00014273,2]
[353559934,1739914242594,-500.0,0.00014273,2]
[353559935,1739914242603,-500.0,0.00014273,2]
[353559936,1739914242614,-2324.44,0.00014273,2]
[353559937,1739914242624,-500.0,0.00014273,2]
[353559938,1739914242634,-733.7,0.00014273,2]
[353559939,1739914242644,-500.0,0.00014273,2]
[353559940,1739914242654,-500.0,0.00014273,2]
[353559941,1739914242664,-500.0,0.00014273,2]
[353559942,1739914242674,-500.0,0.00014273,2]
[353559943,1739914242683,-1280.38,0.00014273,2]
[353559944,1739914242693,-703.38,0.00014273,2]
[353559945,1739914242703,-614.31,0.00014273,2]
[353559946,1739914242712,-500.0,0.00014273,2]
[353559947,1739914242721,-737.48,0.00014273,2]
[353559948,1739914242731,-500.0,0.00014273,2]
[353559949,1739914242741,-622.56,0.00014273,2]
[353559950,1739914242753,-26318.55,0.00014273,2]
[353559951,1739914242763,-1068.88,0.00014273,2]
[353559952,1739914242772,-700.06,0.00014273,2]
[353559953,1739914242782,-723.02,0.00014273,2]
[353559954,1739914242791,-500.0,0.00014273,2]